bitfinex-derivatives/quotes_BTCF0:USTF0_20250411
["timestamp","ask_amount","ask_price","bid_price","bid_amount"]
[1744407276424,0.005,83758.0,83757.0,0.2280383]
[1744407276720,0.17665164,83763.0,83762.0,0.1194312]
[1744407277227,0.00017916,83766.0,83765.0,0.1194269]
[1744407278221,0.11960466,83766.0,83765.0,0.2003869]
[1744407278419,0.11960466,83766.0,83765.0,4e-05]
[1744407278619,0.1791503,83762.0,83759.0,0.1406375]
[1744407278824,0.1791503,83762.0,83761.0,0.1194326]
[1744407279015,0.0597177,83759.0,83752.0,0.360854]
[1744407279214,0.119444,83753.0,83752.0,0.3608]
[1744407279412,0.119444,83753.0,83752.0,0.4802855]
[1744407280619,0.480244,83753.0,83752.0,0.1194855]
[1744407281415,0.3608,83753.0,83752.0,0.1194855]
[1744407281617,0.119443,83754.0,83753.0,0.119444]
[1744407286320,0.173543,83754.0,83753.0,0.119444]
[1744407291832,0.119438,83758.0,83755.0,0.0597201]
[1744407292127,0.119438,83758.0,83757.0,0.179156]
[1744407292329,0.0596982,83787.0,83765.0,0.1194269]
[1744407292521,0.0589,83783.0,83772.0,0.1194169]
[1744407292837,0.0589,83783.0,83772.0,0.4802169]
[1744407293032,0.0589,83783.0,83772.0,0.5970169]
[1744407293235,0.27156152,83783.0,83782.0,0.1194027]
[1744407293418,0.39096282,83783.0,83782.0,0.1194027]
[1744407293623,0.23317912,83783.0,83782.0,0.1194027]
[1744407293822,0.21266152,83783.0,83782.0,0.5369027]
[1744407294122,0.21266152,83783.0,83782.0,0.2353027]
[1744407294423,0.21266152,83783.0,83782.0,0.3170227]
[1744407295227,0.21266152,83783.0,83782.0,0.32583381]
[1744407295430,0.00017905,83791.0,83790.0,0.1193913]
[1744407295825,0.00017905,83791.0,83790.0,0.2352913]
[1744407300626,0.05667905,83791.0,83790.0,0.2352913]
[1744407301328,0.17606895,83791.0,83790.0,0.1193913]
[1744407301837,0.119407,83779.0,83778.0,7.29e-05]
[1744407302229,0.1194127,83775.0,83774.0,0.00017905]
[1744407302727,0.1194255,83766.0,83765.0,5.4e-05]
[1744407302930,0.1194269,83765.0,83764.0,0.03474969]
[1744407303231,0.1194269,83765.0,83754.0,0.3553127]
[1744407303232,0.0597167,83761.0,83754.0,0.3553127]
[1744407303434,0.4802412,83755.0,83754.0,0.3553127]
[1744407303830,0.7302412,83755.0,83754.0,0.3553527]
[1744407304030,0.7302412,83755.0,83754.0,0.3553127]
[1744407304230,0.4802412,83755.0,83754.0,0.4747953]
[1744407304429,0.1194412,83755.0,83754.0,0.4747953]
[1744407304628,0.0548,83760.0,83759.0,0.1194355]
[1744407304823,0.00017905,83763.0,83762.0,0.1194312]
[1744407305639,0.00017905,83763.0,83762.0,0.2294312]
[1744407307827,0.3608,83774.0,83767.0,0.0597117]
[1744407308030,0.3608,83774.0,83773.0,0.1194155]
[1744407308333,0.14190389,83779.0,83778.0,0.1194084]
[1744407308639,0.005,83784.0,83783.0,0.1194013]
[1744407309434,0.1243998,83784.0,83783.0,0.1786013]
[1744407309636,0.1243998,83784.0,83783.0,0.1194413]
[1744407310141,0.1243998,83784.0,83783.0,0.1194013]
[1744407310836,0.1243998,83784.0,83783.0,0.1194413]
[1744407318950,0.1243998,83784.0,83783.0,4e-05]
[1744407319238,0.1243998,83784.0,83775.0,0.00017905]
[1744407319239,0.1194112,83776.0,83775.0,0.00017905]
[1744407319443,0.1194255,83766.0,83765.0,5.4e-05]
[1744407319641,0.2388993,83752.0,83751.0,0.0597227]
[1744407319835,0.1194469,83751.0,83750.0,0.1194471]
[1744407320035,0.0597248,83750.0,83748.0,0.119451]
[1744407320237,0.1791824,83747.0,83746.0,0.1194536]
[1744407320639,0.1194554,83745.0,83744.0,0.3608]
[1744407321445,0.0588,83745.0,83744.0,0.4802969]
[1744407321744,0.0588,83745.0,83744.0,0.5391969]
[1744407322939,0.1782554,83745.0,83744.0,0.5391969]
[1744407324640,0.1782554,83745.0,83744.0,0.4802969]
[1744407324847,0.1782554,83745.0,83744.0,0.5949969]
[1744407325640,0.0588,83745.0,83744.0,0.5949969]
[1744407325847,0.1782554,83745.0,83744.0,0.5949969]
[1744407326147,0.1194302,83763.0,83754.0,0.1194426]
[1744407326343,5e-08,83755.0,83754.0,0.8955426]
[1744407326539,5e-08,83755.0,83754.0,1.1455426]
[1744407326739,5e-08,83755.0,83754.0,1.2602426]
[1744407329548,5e-08,83755.0,83754.0,1.0102426]
[1744407329847,0.11944125,83755.0,83754.0,0.6494826]
[1744407330146,0.11944125,83755.0,83754.0,0.6494426]
[1744407330847,0.11944125,83755.0,83754.0,0.2341826]
[1744407333240,0.11944125,83755.0,83754.0,0.1796826]
[1744407334950,5e-08,83755.0,83754.0,0.1796826]
[1744407335551,5e-08,83755.0,83754.0,0.4296826]
[1744407336550,5e-08,83755.0,83754.0,0.9042826]
[1744407337050,0.17721528,83778.0,83777.0,0.1194098]
[1744407337454,0.17721528,83778.0,83777.0,0.2928098]
[1744407337852,0.1791211,83774.0,83773.0,0.1194155]
[1744407338249,0.1194255,83766.0,83765.0,0.00017905]
[1744407338761,0.8412255,83766.0,83765.0,0.00017905]
[1744407338954,0.4804255,83766.0,83765.0,0.00021905]
[1744407339252,0.5912255,83766.0,83765.0,0.00021905]
[1744407339554,0.2304255,83766.0,83765.0,0.00021905]
[1744407339758,0.5912255,83766.0,83765.0,0.00021905]
[1744407340260,0.2304255,83766.0,83765.0,0.00021905]
[1744407341147,0.5912255,83766.0,83765.0,0.00021905]
[1744407341347,0.2304255,83766.0,83765.0,0.00021905]
[1744407341653,0.5912255,83766.0,83765.0,0.00021905]
[1744407342047,0.2304255,83766.0,83765.0,0.00021905]
[1744407342250,0.5912255,83766.0,83765.0,0.00021905]
[1744407344755,0.2304255,83766.0,83765.0,0.00021905]
[1744407351461,0.111,83766.0,83765.0,0.11964595]
[1744407351661,0.2304255,83766.0,83765.0,0.00021905]
[1744407352162,0.2304255,83766.0,83765.0,0.00017905]
[1744407352355,0.2304255,83766.0,83765.0,0.11964595]
[1744407352557,0.5912255,83766.0,83765.0,0.11964595]
[1744407352953,0.2304255,83766.0,83765.0,0.11964595]
[1744407357265,0.17721528,83774.0,83770.0,0.0597092]
[1744407357460,0.17721528,83774.0,83766.0,0.0597122]
[1744407357461,0.29663028,83774.0,83773.0,0.1194155]
[1744407358661,0.29663028,83774.0,83773.0,0.2343155]
[1744407360359,0.78801528,83774.0,83737.0,0.4153]
[1744407360552,0.119444,83753.0,83752.0,0.1194442]
[1744407360751,0.059726,83748.0,83743.0,0.00477649]
[1744407360958,0.1194569,83744.0,83743.0,0.18395989]
[1744407361153,0.1194569,83744.0,83743.0,0.36008919]
[1744407361154,0.4802569,83744.0,83743.0,0.36008919]
[1744407361358,0.2386569,83744.0,83743.0,0.36012919]
[1744407362356,0.5994569,83744.0,83743.0,0.36012919]
[1744407364056,0.2386569,83744.0,83743.0,0.36012919]
[1744407364554,0.5994569,83744.0,83743.0,0.36012919]
[1744407364956,0.2386569,83744.0,83743.0,0.36012919]
[1744407365160,0.5994569,83744.0,83743.0,0.36012919]
[1744407366057,0.5994569,83744.0,83743.0,0.00481649]
[1744407366953,0.4802569,83744.0,83743.0,0.00481649]
[1744407367762,0.1194569,83744.0,83743.0,0.00481649]
[1744407368370,0.3608,83768.0,83751.0,0.1194469]
[1744407368661,0.65745678,83755.0,83751.0,0.1194469]
[1744407368858,0.53801528,83755.0,83751.0,0.1194469]
[1744407369059,0.17721528,83755.0,83751.0,0.7302469]
[1744407369361,0.17721528,83755.0,83751.0,0.8229269]
[1744407369667,0.17721528,83755.0,83751.0,0.9358269]
[1744407370168,0.0597201,83756.0,83751.0,0.6858269]
[1744407370462,0.1194432,83754.0,83751.0,0.6858269]
[1744407370654,0.11962455,83752.0,83751.0,0.5931469]
[1744407370862,0.48042455,83752.0,83751.0,0.0546]
[1744407371362,0.1194469,83751.0,83750.0,0.0561]
[1744407371567,0.2335469,83751.0,83750.0,0.0561]
[1744407372266,0.2335469,83751.0,83750.0,0.05614]
[1744407372569,0.2335469,83751.0,83750.0,0.0561]
[1744407372872,0.2335469,83751.0,83750.0,0.05614]
[1744407373259,0.2335469,83751.0,83750.0,4e-05]
[1744407373655,0.0597255,83749.0,83741.0,0.1194602]
[1744407373861,0.4802569,83744.0,83735.0,0.00017905]
[1744407374055,0.4802569,83744.0,83739.0,5.4e-05]
[1744407374268,1.12208,83744.0,83716.0,0.3608]
[1744407374461,0.119494,83718.0,83717.0,0.06452487]
[1744407375066,0.119494,83718.0,83717.0,0.06197797]
[1744407375262,0.237694,83718.0,83717.0,0.18147337]
[1744407375464,0.237694,83718.0,83717.0,0.18151337]
[1744407377070,0.237694,83718.0,83717.0,0.12427337]
[1744407377367,0.237694,83718.0,83717.0,0.12431337]
[1744407377572,0.0597432,83724.0,83723.0,0.1194868]
[1744407377763,0.00017917,83726.0,83725.0,0.119484]
[1744407378265,0.3608,83736.0,83735.0,0.1194697]
[1744407378858,0.119466,83738.0,83737.0,0.1194669]
[1744407379064,0.480266,83738.0,83737.0,0.1194669]
[1744407379263,0.119466,83738.0,83737.0,0.1194669]
[1744407380469,0.1194683,83736.0,83735.0,0.1771691]
[1744407380768,0.1194768,83730.0,83729.0,0.00017917]
[1744407381168,0.2339768,83730.0,83729.0,0.00017917]
[1744407381369,0.2339768,83730.0,83729.0,0.00021917]
[1744407384174,0.2339768,83730.0,83729.0,0.00017917]
[1744407384367,0.2339768,83730.0,83729.0,0.00021917]
[1744407387572,0.46708655,83736.0,83731.0,0.0597372]
[1744407387772,0.1417154,83741.0,83740.0,0.1194626]
[1744407387971,0.0509154,83741.0,83740.0,0.4611426]
[1744407388174,0.17721528,83744.0,83743.0,0.1194583]
[1744407388366,0.17721528,83744.0,83743.0,0.1775583]
[1744407388566,0.17721528,83744.0,83743.0,0.4852583]
[1744407389170,0.17721528,83744.0,83743.0,0.2352583]
[1744407389775,0.29667218,83744.0,83743.0,0.2352583]
[1744407390074,0.0597299,83742.0,83738.0,0.0597321]
[1744407390269,0.1194768,83730.0,83729.0,0.00017917]
[1744407390471,0.119494,83718.0,83717.0,0.00483197]
[1744407390669,0.1195168,83702.0,83701.0,0.0577]
[1744407390872,0.1195168,83702.0,83701.0,0.2370299]
[1744407391073,0.1195168,83702.0,83701.0,0.2932299]
[1744407391483,0.1792168,83702.0,83701.0,0.2932299]
[1744407392568,0.1195168,83702.0,83701.0,0.2932299]
[1744407394176,0.1195168,83702.0,83701.0,0.1737125]
[1744407395675,0.1785168,83702.0,83701.0,0.1737125]
[1744407397279,0.1195168,83702.0,83701.0,0.1737125]
[1744407397486,0.1192,83714.0,83709.0,0.1195068]
[1744407397786,0.238701,83714.0,83709.0,0.1195068]
[1744407397971,0.1195002,83714.0,83709.0,0.4803068]
[1744407398179,0.1195028,83712.0,83709.0,0.1195068]
[1744407398374,0.1195168,83702.0,83701.0,5.4e-05]
[1744407398683,0.1195168,83702.0,83701.0,0.0598]
[1744407398883,0.1195168,83702.0,83701.0,0.11734]
[1744407399087,0.1195168,83702.0,83701.0,0.2368582]
[1744407399384,0.1195113,83708.0,83707.0,0.1195082]
[1744407399588,0.1194945,83718.0,83709.0,0.1195068]
[1744407399888,0.1195014,83713.0,83709.0,0.1195068]
[1744407400090,0.0589,83719.0,83709.0,0.2329068]
[1744407400384,0.11968457,83710.0,83709.0,0.2329068]
[1744407401389,0.11968457,83710.0,83709.0,0.2329468]
[1744407402785,0.11968457,83710.0,83709.0,4e-05]
[1744407402988,0.1195168,83702.0,83701.0,7.29e-05]
[1744407403281,0.1195182,83701.0,83691.0,0.00477946]
[1744407403483,0.1195311,83692.0,83691.0,0.00477946]
[1744407404085,0.1195311,83692.0,83691.0,0.00481946]
[1744407404275,0.2326311,83692.0,83691.0,0.00481946]
[1744407406186,0.36097917,83710.0,83692.0,0.0597654]
[1744407406487,0.1195068,83709.0,83708.0,0.1195082]
[1744407407176,0.00017917,83710.0,83709.0,0.1195068]
[1744407407381,0.11968457,83710.0,83709.0,0.1195068]
[1744407407683,0.11968457,83710.0,83709.0,0.2342068]
[1744407407987,0.00017917,83710.0,83709.0,0.2342068]
[1744407415385,0.00017917,83710.0,83709.0,0.5950068]
[1744407418790,0.00017917,83710.0,83709.0,0.2342068]
[1744407420492,0.11697917,83710.0,83709.0,0.2342068]
[1744407421193,0.05987917,83710.0,83709.0,0.2342068]
[1744407422595,0.00017917,83710.0,83709.0,0.2342068]
[1744407426400,0.11968457,83710.0,83709.0,0.2342068]
[1744407426593,0.11968457,83710.0,83698.0,0.0578]
[1744407426594,0.25017917,83710.0,83691.0,0.00481946]
[1744407426796,0.0597641,83694.0,83692.0,0.3341746]
[1744407426998,0.2921297,83693.0,83692.0,0.2146446]
[1744407427493,0.5421297,83693.0,83692.0,0.2146446]
[1744407427698,0.5421297,83693.0,83692.0,0.2146846]
[1744407430598,0.5421297,83693.0,83692.0,4e-05]
[1744407430896,0.1195311,83692.0,83691.0,0.00477946]
[1744407431100,0.1195468,83681.0,83680.0,0.1793703]
[1744407431599,0.1195468,83681.0,83680.0,0.0598271]
[1744407432197,0.1195468,83681.0,83680.0,0.1200271]
[1744407432394,0.00017917,83689.0,83688.0,0.1195368]
[1744407432702,0.00017917,83689.0,83688.0,0.4803368]
[1744407435104,0.1195411,83685.0,83684.0,0.1195413]
[1744407435288,0.1195497,83681.0,83680.0,0.1793164]
[1744407435797,0.1195497,83681.0,83680.0,0.1793564]
[1744407436403,0.1195497,83681.0,83680.0,0.0598134]
[1744407436599,0.1195497,83681.0,83680.0,0.0597734]
[1744407436797,0.1195497,83681.0,83680.0,0.0598134]
[1744407437194,0.1195497,83681.0,83680.0,4e-05]
[1744407437401,0.1195497,83681.0,83680.0,0.1195882]
[1744407437699,0.1195497,83681.0,83680.0,4e-05]
[1744407438203,0.1793345,83676.0,83675.0,0.119551]
[1744407439994,0.2391122,83676.0,83675.0,0.1793279]
[1744407440299,0.4205578,83703.0,83680.0,0.0597737]
[1744407440504,0.1195425,83684.0,83683.0,0.1195425]
[1744407440807,0.1195425,83684.0,83683.0,0.1799425]
[1744407440994,0.1192,83684.0,83683.0,0.1799425]
[1744407441194,0.2387425,83684.0,83683.0,0.1799425]
[1744407441690,0.2387425,83684.0,83673.0,0.1195554]
[1744407441691,0.1195615,83674.0,83673.0,0.1195554]
[1744407441895,0.1195615,83674.0,83673.0,0.1793343]
[1744407442302,0.1192,83675.0,83674.0,0.1195568]
[1744407442602,0.1192,83675.0,83674.0,0.1799568]
[1744407443505,0.2387554,83675.0,83674.0,0.1799568]
[1744407443906,0.2387554,83675.0,83674.0,0.1195568]
[1744407444406,0.2387554,83675.0,83674.0,0.1794568]
[1744407444602,0.2387554,83675.0,83674.0,0.0599]
[1744407444905,0.2387554,83675.0,83674.0,0.1195568]
[1744407445104,0.1195682,83666.0,83665.0,0.00478094]
[1744407445605,0.1195682,83666.0,83665.0,0.18435064]
[1744407445805,0.1808682,83666.0,83665.0,0.18439064]
[1744407446497,0.2385682,83666.0,83665.0,0.18439064]
[1744407447105,0.4803567,83675.0,83674.0,0.1195568]
[1744407447405,0.1772567,83675.0,83674.0,0.1195568]
[1744407447599,0.1195488,83682.0,83681.0,0.1195454]
[1744407448208,0.2385488,83682.0,83681.0,0.1195454]
[1744407448603,0.2385488,83682.0,83681.0,0.1804454]
[1744407449115,0.05994687,83689.0,83681.0,0.1804454]
[1744407449116,0.00017917,83689.0,83688.0,0.1195368]
[1744407449314,0.3608,83712.0,83695.0,0.1195268]
[1744407449607,0.3608,83712.0,83695.0,0.4803268]
[1744407449810,0.0597542,83708.0,83695.0,0.4803268]
[1744407450002,0.0597524,83711.0,83695.0,0.4803268]
[1744407450198,8e-08,83696.0,83695.0,0.8471268]
[1744407450402,0.21267093,83703.0,83702.0,0.1195168]
[1744407450603,0.21267093,83703.0,83702.0,0.4803168]
[1744407451207,0.21267093,83703.0,83702.0,0.1195568]
[1744407451408,0.21267093,83703.0,83702.0,0.1752568]
[1744407452008,0.33218633,83703.0,83702.0,0.1752568]
[1744407454309,0.21267093,83703.0,83702.0,0.1752568]
[1744407454509,0.33218633,83703.0,83702.0,0.1752568]
[1744407455416,0.21267093,83703.0,83702.0,0.1752568]
[1744407455617,0.33218633,83703.0,83702.0,0.5360568]
[1744407455814,0.21267093,83703.0,83702.0,0.5360568]
[1744407456522,0.1195128,83705.0,83704.0,0.119514]
[1744407459317,0.005,83706.0,83705.0,0.1195125]
[1744407459716,0.005,83706.0,83705.0,0.1753125]
[1744407461717,0.005,83706.0,83705.0,0.2322125]
[1744407467330,0.1245111,83706.0,83705.0,0.2322125]
[1744407471035,0.1245111,83706.0,83705.0,0.5930125]
[1744407471747,0.1245111,83706.0,83705.0,0.5361125]
[1744407471936,0.2429111,83706.0,83705.0,0.5361125]
[1744407473039,0.2429111,83706.0,83705.0,0.5953125]
[1744407474539,0.1234,83706.0,83705.0,0.5953125]
[1744407474933,0.0655,83706.0,83705.0,0.5953125]
[1744407475934,0.005,83706.0,83705.0,0.5953125]
[1744407476846,0.1245111,83706.0,83705.0,0.5953125]
[1744407479644,0.005,83706.0,83705.0,0.5953125]
[1744407480744,0.1823111,83706.0,83705.0,0.5953125]
[1744407481045,0.32428003,83706.0,83705.0,0.5953125]
[1744407481745,0.20476893,83706.0,83705.0,0.5953125]
[1744407482247,0.14696893,83706.0,83705.0,0.5953125]
[1744407483747,0.26648003,83706.0,83705.0,0.5953125]
[1744407484952,0.32378003,83706.0,83705.0,0.5953125]
[1744407485147,0.1818111,83706.0,83705.0,0.5953125]
[1744407486345,0.1195254,83696.0,83695.0,0.2146446]
[1744407486544,0.1195254,83696.0,83695.0,0.1211446]
[1744407486739,0.3695254,83696.0,83695.0,0.0276446]
[1744407486944,0.1195325,83691.0,83690.0,0.27091901]
[1744407487142,0.4803325,83691.0,83690.0,0.27086501]
[1744407487346,0.1195411,83685.0,83684.0,0.3553127]
[1744407487742,0.7881411,83685.0,83684.0,0.3553127]
[1744407488044,0.1195511,83678.0,83672.0,0.1195584]
[1744407488240,0.4803511,83678.0,83672.0,0.1195584]
[1744407488440,0.4803511,83678.0,83672.0,0.1195596]
[1744407488747,0.4803511,83678.0,83673.0,0.1195581]
[1744407489247,0.1195568,83674.0,83673.0,0.1195581]
[1744407489446,0.1195597,83672.0,83671.0,0.59412029]
[1744407489843,0.0597744,83680.0,83677.0,0.1195525]
[1744407490046,0.1195492,83680.0,83679.0,0.1195497]
[1744407490444,0.1195492,83680.0,83679.0,0.1758497]
[1744407490639,0.00017929,83686.0,83685.0,0.1195411]
[1744407491147,0.005,83706.0,83689.0,0.0597671]
[1744407491337,0.005,83706.0,83695.0,0.1195268]
[1744407491643,0.1195397,83686.0,83685.0,0.0563]
[1744407491836,0.1195397,83686.0,83685.0,0.1758411]
[1744407492242,0.1195397,83686.0,83685.0,0.1758811]
[1744407492637,0.1195397,83686.0,83685.0,4e-05]
[1744407493240,0.1195425,83684.0,83683.0,0.0597713]
[1744407494135,0.2305425,83684.0,83683.0,0.0597713]
[1744407495747,0.0597748,83680.0,83677.0,0.06000949]
[1744407495948,0.1195511,83678.0,83677.0,0.11978439]
[1744407496147,0.1195511,83678.0,83677.0,0.00023329]
[1744407496339,0.2905511,83678.0,83677.0,0.00023329]
[1744407496744,0.2905511,83678.0,83677.0,0.00017929]
[1744407496948,0.2905511,83678.0,83677.0,0.00021929]
[1744407498144,0.2283511,83678.0,83677.0,0.00021929]
[1744407498350,0.0597743,83680.0,83679.0,0.1195497]
[1744407498939,0.179309,83689.0,83688.0,0.0597671]
[1744407499146,0.179309,83689.0,83688.0,0.4205671]
[1744407500452,0.179309,83689.0,83688.0,0.3608]
[1744407500645,0.1195511,83678.0,83677.0,0.00017929]
[1744407500845,0.1195511,83678.0,83677.0,0.00025219]
[1744407501150,0.1195511,83678.0,83677.0,0.00017929]
[1744407501349,0.1195511,83678.0,83677.0,0.00021929]
[1744407501546,0.2261511,83678.0,83677.0,0.00021929]
[1744407501753,0.2261511,83678.0,83677.0,9e-08]
[1744407502149,0.1195682,83666.0,83665.0,0.00478094]
[1744407502949,0.2261682,83666.0,83665.0,0.00482094]
[1744407505346,0.00017929,83674.0,83665.0,0.00482094]
[1744407505553,0.00017929,83674.0,83673.0,0.4803582]
[1744407506257,0.14197171,83674.0,83673.0,0.5420582]
[1744407506646,0.12561342,83681.0,83680.0,0.1195482]
[1744407506846,0.0597621,83697.0,83688.0,0.1195368]
[1744407507063,0.4099,83703.0,83688.0,0.4803368]
[1744407507359,0.1195319,83692.0,83688.0,0.4803368]
[1744407507651,0.0597624,83697.0,83688.0,0.4803368]
[1744407507957,0.1195312,83692.0,83688.0,0.4803368]
[1744407508252,0.059764,83695.0,83688.0,0.4803368]
[1744407508449,0.33222403,83689.0,83688.0,0.4803368]
[1744407509359,0.21268863,83689.0,83688.0,0.4803368]
[1744407509752,0.21268863,83689.0,83688.0,0.9908768]
[1744407509947,0.21268863,83689.0,83688.0,1.1069768]
[1744407510250,0.05994139,83697.0,83696.0,0.1195254]
[1744407510955,0.11970319,83697.0,83696.0,0.1195254]
[1744407511255,0.11970319,83697.0,83696.0,0.2338254]
[1744407511646,0.00017929,83697.0,83696.0,0.5946254]
[1744407512057,0.3608,83720.0,83696.0,0.9501627]
[1744407512259,0.1195057,83710.0,83705.0,0.4803125]
[1744407512559,0.27243773,83715.0,83705.0,0.6545125]
[1744407512749,0.1195042,83711.0,83705.0,0.6545125]
[1744407513152,0.21268863,83715.0,83705.0,0.6545125]
[1744407513655,0.1195059,83710.0,83705.0,0.6545125]
[1744407513852,0.0597514,83712.0,83705.0,0.6545125]
[1744407513853,0.1195073,83709.0,83705.0,0.6545125]
[1744407514553,0.1195098,83707.0,83705.0,0.6545125]
[1744407514860,0.1245111,83706.0,83705.0,0.6545125]
[1744407515160,0.1245111,83706.0,83705.0,0.66339534]
[1744407515652,0.1245111,83706.0,83705.0,0.535]
[1744407515857,0.1245111,83706.0,83705.0,0.1143]
[1744407516057,0.1867111,83706.0,83705.0,0.1143]
[1744407516259,0.5475111,83706.0,83705.0,4e-05]
[1744407516450,0.8576111,83706.0,83705.0,4e-05]
[1744407516653,0.1195211,83699.0,83698.0,0.0568]
[1744407517054,0.2418211,83699.0,83698.0,0.0568]
[1744407519051,0.1195225,83698.0,83695.0,0.0584]
[1744407519460,0.2328225,83698.0,83695.0,0.0584]
[1744407519659,0.2328225,83698.0,83696.0,0.1195248]
[1744407520754,0.2328225,83698.0,83695.0,0.0584]
[1744407520954,0.2328225,83698.0,83695.0,0.1779255]
[1744407521557,0.2328225,83698.0,83696.0,0.1195252]
[1744407522062,0.2328225,83698.0,83695.0,0.0584]
[1744407522358,0.2328225,83698.0,83694.0,5.4e-05]
[1744407522664,0.2931225,83698.0,83689.0,0.1187]
[1744407522854,0.2931225,83698.0,83697.0,0.00021929]
[1744407523461,0.3608,83699.0,83698.0,0.1195225]
[1744407523657,0.1715527,83699.0,83698.0,0.6535225]
[1744407523961,0.00017929,83714.0,83713.0,0.1195011]
[1744407524162,0.00017929,83714.0,83713.0,0.4803011]
[1744407524355,0.00017929,83714.0,83713.0,0.6606011]
[1744407524750,0.11967899,83714.0,83713.0,0.4795]
[1744407525153,0.17617899,83714.0,83713.0,0.4795]
[1744407525355,0.23567899,83714.0,83713.0,0.47954]
[1744407525562,0.23567899,83714.0,83713.0,0.42044]
[1744407527559,0.23567899,83714.0,83713.0,0.05964]
[1744407531259,0.00017929,83714.0,83713.0,0.1791411]
[1744407531461,0.11967899,83714.0,83713.0,0.2388411]
[1744407532057,0.11967899,83714.0,83713.0,0.1193]
[1744407532254,0.11967899,83714.0,83713.0,0.2388411]
[1744407532657,0.11967899,83714.0,83713.0,0.17255563]
[1744407533062,0.11967899,83714.0,83713.0,0.17259563]
[1744407533659,0.00017929,83714.0,83713.0,0.17259563]
[1744407533860,0.11967899,83714.0,83713.0,0.17259563]
[1744407534167,0.00017929,83714.0,83713.0,0.17259563]
[1744407535770,0.00017929,83714.0,83713.0,0.22889563]
[1744407535963,0.00017929,83714.0,83713.0,0.24507116]
[1744407537265,0.00017929,83714.0,83713.0,0.24527978]
[1744407537665,0.21268863,83731.0,83730.0,0.1194768]
[1744407537864,0.21268863,83731.0,83730.0,0.49666095]
[1744407538668,0.24741403,83743.0,83742.0,0.1194597]
[1744407538870,0.24741403,83746.0,83745.0,0.1194554]
[1744407539073,0.24741403,83746.0,83745.0,0.13599314]
[1744407539371,0.24741403,83746.0,83745.0,0.14474518]
[1744407540565,0.36686803,83746.0,83745.0,0.14478518]
[1744407540969,0.36686803,83746.0,83745.0,0.13603314]
[1744407541567,0.1194569,83744.0,83743.0,0.3608]
[1744407542270,0.1194569,83744.0,83743.0,0.36084]
[1744407542571,0.2314569,83744.0,83743.0,0.36084]
[1744407542968,0.2314569,83744.0,83743.0,0.4802983]
[1744407543167,0.2314569,83744.0,83743.0,0.4976186]
[1744407543369,0.2314569,83744.0,83743.0,0.0173603]
[1744407543566,0.2314569,83744.0,83743.0,0.1368186]
[1744407543762,0.2314569,83744.0,83743.0,0.1194983]
[1744407543969,0.2314569,83744.0,83743.0,0.13681298]
[1744407544676,0.0542,83744.0,83743.0,0.13681298]
[1744407544870,0.0597171,83760.0,83753.0,0.119444]
[1744407545069,0.0597155,83763.0,83753.0,0.119444]
[1744407545070,0.11962178,83754.0,83753.0,0.119444]
[1744407545272,0.1194256,83766.0,83757.0,0.1194383]
[1744407545572,0.1194227,83768.0,83757.0,0.13683171]
[1744407545774,0.119423,83768.0,83757.0,0.13683171]
[1744407546160,0.0594,83773.0,83757.0,0.13683171]
[1744407546370,0.4186,83798.0,83766.0,0.1194255]
[1744407546371,0.1194116,83776.0,83766.0,0.1194255]
[1744407546566,0.0597043,83778.0,83766.0,0.49768998]
[1744407546773,0.0597024,83781.0,83766.0,0.49768998]
[1744407546970,0.1161,83783.0,83766.0,0.49768998]
[1744407547278,0.1194106,83777.0,83766.0,0.49768998]
[1744407547475,0.1194117,83776.0,83775.0,0.1194127]
[1744407547672,0.1194117,83776.0,83775.0,0.4802127]
[1744407547873,0.1194033,83782.0,83781.0,0.1194027]
[1744407548067,0.1754033,83782.0,83781.0,0.1194027]
[1744407548971,0.1754033,83782.0,83773.0,0.00017907]
[1744407548972,0.1194141,83774.0,83773.0,0.00017907]
[1744407551868,0.12407917,83784.0,83773.0,0.00017907]
[1744407552066,0.1141013,83783.0,83782.0,0.1194027]
[1744407553067,0.1141013,83783.0,83780.0,0.0597021]
[1744407553068,0.0597039,83779.0,83776.0,0.1194108]
[1744407553271,0.0597063,83775.0,83773.0,0.00017907]
[1744407553473,0.2313141,83774.0,83773.0,0.00017907]
[1744407553875,0.2313141,83774.0,83773.0,0.00021907]
[1744407554078,0.2313141,83774.0,83773.0,0.00017907]
[1744407554266,0.2313141,83774.0,83773.0,0.00021907]
[1744407554671,0.2313141,83774.0,83773.0,0.00017907]
[1744407554867,0.2313141,83774.0,83773.0,0.00021907]
[1744407556780,0.1751141,83774.0,83773.0,0.11963457]
[1744407557080,0.5977067,83782.0,83781.0,0.1194041]
[1744407557382,0.5977067,83782.0,83781.0,0.4802041]
[1744407557977,0.1791067,83782.0,83781.0,0.1194041]
[1744407559075,0.1791067,83782.0,83781.0,0.13669461]
[1744407559771,0.1791067,83782.0,83781.0,0.01729051]
[1744407559970,0.1791067,83782.0,83781.0,0.1194041]
[1744407560170,0.1791067,83782.0,83781.0,0.13701828]
[1744407560373,0.2358067,83782.0,83781.0,0.13701828]
[1744407560976,0.12458007,83784.0,83783.0,0.1194013]
[1744407561181,0.12458007,83784.0,83783.0,0.13701548]
[1744407563781,0.12458007,83784.0,83783.0,0.13650963]
[1744407565381,0.12458007,83784.0,83783.0,0.1194013]
[1744407565578,0.12458007,83784.0,83783.0,0.13590674]
[1744407569188,0.12458007,83784.0,83783.0,0.1194013]
[1744407571787,0.12458007,83784.0,83783.0,0.1745013]
[1744407575483,0.12458007,83784.0,83783.0,0.2298013]
[1744407578888,0.17908007,83784.0,83783.0,4e-05]
[1744407579090,0.17908007,83784.0,83773.0,0.05998468]
[1744407579091,0.1194141,83774.0,83773.0,0.00017907]
[1744407579482,0.1194312,83762.0,83761.0,7.29e-05]
[1744407579680,0.1194426,83754.0,83753.0,0.28405999]
[1744407580288,0.0597095,83771.0,83753.0,0.30060176]
[1744407580489,0.1786287,83764.0,83763.0,0.1194298]
[1744407580695,0.17694542,83790.0,83783.0,0.1194013]
[1744407580886,0.29633842,83790.0,83789.0,0.1193927]
[1744407581085,0.17694542,83790.0,83789.0,0.13593447]
[1744407581697,0.29633672,83790.0,83789.0,0.19583447]
[1744407582093,0.41113672,83790.0,83789.0,0.25063447]
[1744407583995,0.2341913,83790.0,83789.0,0.25044971]
[1744407585785,0.2341913,83790.0,83789.0,0.25049685]
[1744407590096,0.2341913,83790.0,83789.0,0.2506174]
[1744407590793,0.1193998,83784.0,83783.0,0.3608]
[1744407590993,0.1193998,83784.0,83781.0,0.00017907]
[1744407590994,0.1194027,83782.0,83781.0,0.00017907]
[1744407591383,0.3694027,83782.0,83781.0,0.00017907]
[1744407591589,0.4878027,83782.0,83781.0,0.00017907]
[1744407592287,0.1194141,83774.0,83773.0,5.4e-05]
[1744407592593,0.0597134,83765.0,83742.0,0.1542494]
[1744407592797,0.1194355,83759.0,83753.0,7.29e-05]
[1744407593189,0.2324355,83759.0,83753.0,7.29e-05]
[1744407593696,0.2324355,83759.0,83758.0,0.28405999]
[1744407595898,0.2873355,83759.0,83758.0,0.28405999]